[Event "*** Titled Tuesday Blitz"]
[Site "Chess.com"]
[Date "2021.02.09"]
[Round "6"]
[White "Synctel"]
[Black "Stormeman100100"]
[Result "0-1"]
[WhiteElo "2025"]
[BlackElo "2527"]
[TimeControl "180+1"]
[EndTime "11:05:45 PST"]
[Termination "Stormeman100100 won by resignation"]

1. e4 {[%clk 0:03:00.9]} 1... c5 {[%clk 0:02:49]} 2. Ne2 {[%clk 0:02:59.3]} 2...
d6 {[%clk 0:02:48.8]} 3. g3 {[%clk 0:02:58.3]} 3... Nf6 {[%clk 0:02:49.2]} 4.
Bg2 {[%clk 0:02:58.9]} 4... Nc6 {[%clk 0:02:49.7]} 5. c3 {[%clk 0:02:59.4]} 5...
g6 {[%clk 0:02:50.4]} 6. d4 {[%clk 0:02:59.5]} 6... cxd4 {[%clk 0:02:50.5]} 7.
cxd4 {[%clk 0:03:00.4]} 7... Bg4 {[%clk 0:02:50.9]} 8. Nbc3 {[%clk 0:02:57.5]}
8... Bg7 {[%clk 0:02:48.5]} 9. h3 {[%clk 0:02:55]} 9... Bxe2 {[%clk 0:02:48.3]}
10. Nxe2 {[%clk 0:02:54.5]} 10... O-O {[%clk 0:02:48.6]} 11. O-O {[%clk
0:02:54.5]} 11... Rc8 {[%clk 0:02:48.6]} 12. Be3 {[%clk 0:02:53.2]} 12... Na5
{[%clk 0:02:41.3]} 13. b3 {[%clk 0:02:51]} 13... Nc6 {[%clk 0:02:37.6]} 14. d5
{[%clk 0:02:13.5]} 14... Nb4 {[%clk 0:02:32]} 15. Nd4 {[%clk 0:02:04.9]} 15...
Nd7 {[%clk 0:02:30.7]} 16. a3 {[%clk 0:02:00.1]} 16... Na6 {[%clk 0:02:29.5]}
17. b4 {[%clk 0:01:59.2]} 17... Nb6 {[%clk 0:02:29.5]} 18. Qe2 {[%clk
0:01:28.6]} 18... Nc4 {[%clk 0:02:27.2]} 19. Rfc1 {[%clk 0:01:27.3]} 19... Nxe3
{[%clk 0:02:26.8]} 20. Qxe3 {[%clk 0:01:27.8]} 20... Qb6 {[%clk 0:02:24.4]} 21.
Nc2 {[%clk 0:00:29.4]} 21... Qxe3 {[%clk 0:02:19.8]} 22. Nxe3 {[%clk 0:00:29.2]}
22... Bxa1 {[%clk 0:02:20.7]} 23. Rxa1 {[%clk 0:00:28.8]} 23... Rc3 {[%clk
0:02:15.3]} 24. Bf1 {[%clk 0:00:28]} 24... Rfc8 {[%clk 0:02:11.7]} 25. b5 {[%clk
0:00:18.2]} 0-1

[Event "*** Titled Tuesday Blitz"]
[Site "Chess.com"]
[Date "2021.02.09"]
[Round "6"]
[White "skoularikii"]
[Black "Arseniy_Nesterov"]
[Result "0-1"]
[WhiteElo "2502"]
[BlackElo "2804"]
[TimeControl "180+1"]
[EndTime "11:05:58 PST"]
[Termination "Arseniy_Nesterov won by resignation"]

1. e4 {[%clk 0:03:00.9]} 1... e5 {[%clk 0:02:59.6]} 2. Nf3 {[%clk 0:03:01.2]}
2... Nc6 {[%clk 0:02:59.5]} 3. Bc4 {[%clk 0:03:01.2]} 3... Bc5 {[%clk
0:02:59.1]} 4. Nc3 {[%clk 0:03:01.1]} 4... Nf6 {[%clk 0:02:59.4]} 5. d3 {[%clk
0:03:01.5]} 5... d6 {[%clk 0:02:56.7]} 6. Ne2 {[%clk 0:03:01.3]} 6... Bg4 {[%clk
0:02:44.5]} 7. Ng3 {[%clk 0:03:01.2]} 7... Nd4 {[%clk 0:02:37.2]} 8. c3 {[%clk
0:03:01.3]} 8... Nxf3+ {[%clk 0:02:29.8]} 9. gxf3 {[%clk 0:03:01.3]} 9... Be6
{[%clk 0:02:28.8]} 10. Qb3 {[%clk 0:03:01]} 10... Bxc4 {[%clk 0:02:26.2]} 11.
Qxc4 {[%clk 0:03:01.2]} 11... Qd7 {[%clk 0:02:17.4]} 12. d4 {[%clk 0:02:56.5]}
12... Bb6 {[%clk 0:02:07]} 13. Bg5 {[%clk 0:02:27.7]} 13... exd4 {[%clk
0:01:56.1]} 14. Bxf6 {[%clk 0:02:22.7]} 14... gxf6 {[%clk 0:01:55.7]} 15. cxd4
{[%clk 0:02:16.6]} 15... d5 {[%clk 0:01:54.8]} 16. exd5 {[%clk 0:01:25]} 16...
O-O-O {[%clk 0:01:53.9]} 17. O-O-O {[%clk 0:01:07.5]} 17... Qxd5 {[%clk
0:01:52.4]} 18. Qxd5 {[%clk 0:01:03.1]} 18... Rxd5 {[%clk 0:01:53.3]} 19. Rhe1
{[%clk 0:01:00.5]} 19... Rxd4 {[%clk 0:01:35.4]} 20. Rxd4 {[%clk 0:00:52]} 20...
Bxd4 {[%clk 0:01:36.3]} 21. Re7 {[%clk 0:00:51.2]} 21... Rf8 {[%clk 0:01:35.3]}
22. Ne4 {[%clk 0:00:46.2]} 22... Kd8 {[%clk 0:01:33.4]} 0-1

[Event "*** Titled Tuesday Blitz"]
[Site "Chess.com"]
[Date "2021.02.09"]
[Round "6"]
[White "DenLaz"]
[Black "Sjakkerntobi"]
[Result "1-0"]
[WhiteElo "2781"]
[BlackElo "2304"]
[TimeControl "180+1"]
[EndTime "11:06:08 PST"]
[Termination "DenLaz won by resignation"]

1. d4 {[%clk 0:03:00.9]} 1... e6 {[%clk 0:02:59.2]} 2. c4 {[%clk 0:02:59.6]}
2... Nf6 {[%clk 0:02:59.4]} 3. Nf3 {[%clk 0:02:59.1]} 3... c5 {[%clk 0:02:59.6]}
4. d5 {[%clk 0:02:58.6]} 4... exd5 {[%clk 0:03:00.5]} 5. cxd5 {[%clk 0:02:58.8]}
5... d6 {[%clk 0:03:01.2]} 6. Nc3 {[%clk 0:02:59.3]} 6... g6 {[%clk 0:03:01.6]}
7. h3 {[%clk 0:02:59.9]} 7... Bg7 {[%clk 0:03:01.3]} 8. e4 {[%clk 0:03:00.6]}
8... O-O {[%clk 0:03:00.2]} 9. Bd3 {[%clk 0:03:01.2]} 9... b5 {[%clk 0:02:59.4]}
10. Bxb5 {[%clk 0:02:58.6]} 10... Nxe4 {[%clk 0:02:56.9]} 11. Nxe4 {[%clk
0:02:59.5]} 11... Qa5+ {[%clk 0:02:56.4]} 12. Nfd2 {[%clk 0:02:59.9]} 12... Qxb5
{[%clk 0:02:54.6]} 13. Nxd6 {[%clk 0:03:00.5]} 13... Qd7 {[%clk 0:02:49.6]} 14.
N2c4 {[%clk 0:02:57]} 14... Ba6 {[%clk 0:02:20.3]} 15. O-O {[%clk 0:02:51.3]}
15... Rd8 {[%clk 0:01:54.1]} 16. Re1 {[%clk 0:02:45.4]} 16... Bf8 {[%clk
0:01:43.5]} 17. Bf4 {[%clk 0:02:45]} 17... Bxc4 {[%clk 0:01:00.9]} 18. Nxc4
{[%clk 0:02:43.4]} 18... Na6 {[%clk 0:01:00.9]} 19. d6 {[%clk 0:02:38.9]} 19...
Rab8 {[%clk 0:01:00.5]} 20. b3 {[%clk 0:02:37.6]} 20... Nb4 {[%clk 0:00:58.3]}
21. Qd2 {[%clk 0:02:33.9]} 21... Qf5 {[%clk 0:00:44.8]} 22. Be5 {[%clk
0:02:28.2]} 22... Nc2 {[%clk 0:00:30.5]} 23. g4 {[%clk 0:02:14]} 23... Nxe1
{[%clk 0:00:25.5]} 24. Rxe1 {[%clk 0:02:13.8]} 24... Qd7 {[%clk 0:00:18.6]} 25.
Qf4 {[%clk 0:02:13.3]} 25... Bg7 {[%clk 0:00:17.5]} 26. Bxg7 {[%clk 0:02:12.3]}
26... Kxg7 {[%clk 0:00:18.4]} 27. Re7 {[%clk 0:02:12.3]} 1-0

[Event "*** Titled Tuesday Blitz"]
[Site "Chess.com"]
[Date "2021.02.09"]
[Round "6"]
[White "lamomiablanca"]
[Black "WonderChampion"]
[Result "1-0"]
[WhiteElo "2270"]
[BlackElo "2060"]
[TimeControl "180+1"]
[EndTime "11:06:16 PST"]
[Termination "lamomiablanca won by resignation"]

1. e4 {[%clk 0:03:00.9]} 1... c5 {[%clk 0:02:59.1]} 2. d3 {[%clk 0:02:59.9]}
2... g6 {[%clk 0:02:58.2]} 3. g3 {[%clk 0:02:58.4]} 3... Bg7 {[%clk 0:02:56.6]}
4. Bg2 {[%clk 0:02:57.3]} 4... e6 {[%clk 0:02:54.3]} 5. f4 {[%clk 0:02:57.2]}
5... Ne7 {[%clk 0:02:53.8]} 6. Nf3 {[%clk 0:02:53.2]} 6... O-O {[%clk
0:02:53.1]} 7. O-O {[%clk 0:02:52.6]} 7... Nbc6 {[%clk 0:02:51.6]} 8. c3 {[%clk
0:02:51.9]} 8... d5 {[%clk 0:02:51.4]} 9. a4 {[%clk 0:02:50.7]} 9... a5 {[%clk
0:02:49.7]} 10. Na3 {[%clk 0:02:49.9]} 10... Bd7 {[%clk 0:02:43.7]} 11. e5
{[%clk 0:02:48.5]} 11... Nf5 {[%clk 0:02:35.3]} 12. Qe2 {[%clk 0:02:42.5]} 12...
d4 {[%clk 0:02:32.4]} 13. Nc4 {[%clk 0:02:36.9]} 13... h5 {[%clk 0:02:20.2]} 14.
Bd2 {[%clk 0:02:33.8]} 14... dxc3 {[%clk 0:02:18.5]} 15. bxc3 {[%clk 0:02:33.2]}
15... h4 {[%clk 0:02:08.5]} 16. g4 {[%clk 0:02:32.2]} 16... Nh6 {[%clk
0:02:00.1]} 17. h3 {[%clk 0:02:30.5]} 17... Qe7 {[%clk 0:01:55.4]} 18. Rfb1
{[%clk 0:02:27.7]} 18... Rab8 {[%clk 0:01:53.3]} 19. Rb6 {[%clk 0:02:25.2]}
19... Rfc8 {[%clk 0:01:41.1]} 20. Nd6 {[%clk 0:02:24.5]} 20... Rc7 {[%clk
0:01:32.4]} 21. Rab1 {[%clk 0:02:24.2]} 21... Bc8 {[%clk 0:01:21]} 22. Ng5
{[%clk 0:02:21.6]} 22... f6 {[%clk 0:01:06.4]} 23. Nf3 {[%clk 0:02:17.1]} 23...
fxe5 {[%clk 0:00:58.8]} 24. fxe5 {[%clk 0:02:18]} 24... Bxe5 {[%clk 0:00:52]}
25. Nxe5 {[%clk 0:02:17.8]} 25... Qxd6 {[%clk 0:00:50.1]} 26. Nxc6 {[%clk
0:02:14.8]} 26... Ra8 {[%clk 0:00:46.4]} 27. Ne5 {[%clk 0:02:01.6]} 27... Qe7
{[%clk 0:00:27.6]} 28. Bxh6 {[%clk 0:02:00.2]} 28... Bd7 {[%clk 0:00:17]} 29.
Rxb7 {[%clk 0:01:58.7]} 1-0

[Event "*** Titled Tuesday Blitz"]
[Site "Chess.com"]
[Date "2021.02.09"]
[Round "6"]
[White "LogoCzar"]
[Black "Grineva_Marianna"]
[Result "0-1"]
[WhiteElo "2385"]
[BlackElo "2224"]
[TimeControl "180+1"]
[EndTime "11:06:20 PST"]
[Termination "Grineva_Marianna won by resignation"]

1. d4 {[%clk 0:03:00.9]} 1... d6 {[%clk 0:02:58.1]} 2. e4 {[%clk 0:02:59.7]}
2... Nf6 {[%clk 0:02:55.4]} 3. Nc3 {[%clk 0:02:59.6]} 3... g6 {[%clk 0:02:55.1]}
4. f4 {[%clk 0:02:59.8]} 4... Bg7 {[%clk 0:02:52.6]} 5. Nf3 {[%clk 0:03:00]}
5... c5 {[%clk 0:02:52.3]} 6. dxc5 {[%clk 0:02:59.6]} 6... Qa5 {[%clk
0:02:51.5]} 7. Bd3 {[%clk 0:02:59.3]} 7... Qxc5 {[%clk 0:02:50.2]} 8. Qe2 {[%clk
0:02:59.4]} 8... Bg4 {[%clk 0:02:47.3]} 9. Be3 {[%clk 0:02:58.6]} 9... Qa5
{[%clk 0:02:47]} 10. O-O {[%clk 0:02:58.4]} 10... O-O {[%clk 0:02:41.2]} 11.
Rad1 {[%clk 0:02:58.1]} 11... Nc6 {[%clk 0:02:34.8]} 12. h3 {[%clk 0:02:57.6]}
12... Bxf3 {[%clk 0:02:33.9]} 13. Qxf3 {[%clk 0:02:58.5]} 13... Nb4 {[%clk
0:02:34.2]} 14. Bc4 {[%clk 0:02:56.6]} 14... Nxc2 {[%clk 0:02:29.6]} 15. Bf2
{[%clk 0:02:54.9]} 15... Nb4 {[%clk 0:02:24.3]} 16. e5 {[%clk 0:02:38.6]} 16...
dxe5 {[%clk 0:02:20.5]} 17. fxe5 {[%clk 0:02:38.9]} 17... Qxe5 {[%clk
0:02:19.2]} 18. Rfe1 {[%clk 0:02:38.2]} 18... Qc7 {[%clk 0:02:15.8]} 19. Bb3
{[%clk 0:02:37.4]} 19... Rad8 {[%clk 0:02:12.4]} 20. Rc1 {[%clk 0:02:31.6]}
20... Nd3 {[%clk 0:01:49.5]} 21. Nd5 {[%clk 0:02:19.9]} 21... Nxe1 {[%clk
0:01:48.3]} 22. Nxc7 {[%clk 0:02:16.5]} 22... Nxf3+ {[%clk 0:01:48]} 23. gxf3
{[%clk 0:02:16.8]} 23... Rd2 {[%clk 0:01:46.2]} 24. Bxa7 {[%clk 0:02:15.1]}
24... Rxb2 {[%clk 0:01:45.3]} 25. Bd4 {[%clk 0:02:12.8]} 25... Rd2 {[%clk
0:01:41.3]} 26. Bc5 {[%clk 0:02:06.2]} 26... Nh5 {[%clk 0:01:35.4]} 27. Rc2
{[%clk 0:02:02.1]} 27... Rxc2 {[%clk 0:01:27.9]} 28. Bxc2 {[%clk 0:02:03]} 28...
Rc8 {[%clk 0:01:27.7]} 29. Bb6 {[%clk 0:02:02.2]} 29... Nf4 {[%clk 0:01:23.5]}
30. Be4 {[%clk 0:02:01.1]} 30... Ne2+ {[%clk 0:01:17.3]} 31. Kf2 {[%clk
0:02:00.6]} 31... Nc3 {[%clk 0:01:17]} 32. Ba5 {[%clk 0:01:45.3]} 32... Nxe4+
{[%clk 0:01:14.2]} 33. fxe4 {[%clk 0:01:46.2]} 33... Bd4+ {[%clk 0:01:14.4]} 34.
Ke2 {[%clk 0:01:46]} 34... b6 {[%clk 0:01:14.7]} 35. Nb5 {[%clk 0:01:46]} 35...
bxa5 {[%clk 0:01:10.1]} 36. Nxd4 {[%clk 0:01:46.2]} 36... e5 {[%clk 0:01:08.2]}
37. Nf3 {[%clk 0:01:41.5]} 37... Rc2+ {[%clk 0:01:07.6]} 38. Kd3 {[%clk
0:01:41.5]} 38... Rxa2 {[%clk 0:01:08]} 39. Nxe5 {[%clk 0:01:42]} 39... Ra3+
{[%clk 0:01:08.5]} 40. Kc4 {[%clk 0:01:42.4]} 40... Rxh3 {[%clk 0:01:08.9]} 41.
Kb5 {[%clk 0:01:42.9]} 41... Re3 {[%clk 0:01:08.4]} 42. Ng4 {[%clk 0:01:43]}
42... Re1 {[%clk 0:01:05]} 43. Kxa5 {[%clk 0:01:40]} 43... Kg7 {[%clk
0:01:04.3]} 44. Kb4 {[%clk 0:01:37.4]} 44... Rxe4+ {[%clk 0:01:03.3]} 0-1

[Event "*** Titled Tuesday Blitz"]
[Site "Chess.com"]
[Date "2021.02.09"]
[Round "6"]
[White "niki_2003"]
[Black "Artem_Koval"]
[Result "0-1"]
[WhiteElo "2044"]
[BlackElo "2259"]
[TimeControl "180+1"]
[EndTime "11:06:23 PST"]
[Termination "Artem_Koval won by checkmate"]

1. d4 {[%clk 0:02:56.9]} 1... Nf6 {[%clk 0:02:59.5]} 2. c4 {[%clk 0:02:56.6]}
2... e5 {[%clk 0:02:59.4]} 3. dxe5 {[%clk 0:02:56.2]} 3... Ng4 {[%clk
0:02:59.3]} 4. Nf3 {[%clk 0:02:56.9]} 4... Bc5 {[%clk 0:02:58.3]} 5. e3 {[%clk
0:02:53.4]} 5... Nc6 {[%clk 0:02:58.1]} 6. a3 {[%clk 0:02:44]} 6... a5 {[%clk
0:02:53.4]} 7. Nc3 {[%clk 0:02:40.6]} 7... Ngxe5 {[%clk 0:02:52.4]} 8. b3 {[%clk
0:02:35.8]} 8... O-O {[%clk 0:02:47.4]} 9. Bb2 {[%clk 0:02:36.1]} 9... Re8
{[%clk 0:02:45.1]} 10. Be2 {[%clk 0:02:36.3]} 10... Nxf3+ {[%clk 0:02:45.3]} 11.
Bxf3 {[%clk 0:02:36.1]} 11... Ne5 {[%clk 0:02:46.2]} 12. O-O {[%clk 0:02:35.4]}
12... Ra6 {[%clk 0:02:39.5]} 13. Ne4 {[%clk 0:02:23.3]} 13... Ba7 {[%clk
0:02:37.8]} 14. b4 {[%clk 0:02:21.4]} 14... Rh6 {[%clk 0:02:33.5]} 15. g3 {[%clk
0:02:00.3]} 15... Nxc4 {[%clk 0:02:14.4]} 16. Bc3 {[%clk 0:01:54.7]} 16... Ne5
{[%clk 0:02:10.8]} 17. Bg2 {[%clk 0:01:52]} 17... d5 {[%clk 0:02:00.1]} 18. Nc5
{[%clk 0:01:40.8]} 18... c6 {[%clk 0:01:54.5]} 19. Nb3 {[%clk 0:01:24.7]} 19...
Bg4 {[%clk 0:01:39.6]} 20. Qc2 {[%clk 0:01:13.6]} 20... Qg5 {[%clk 0:01:32.4]}
21. f4 {[%clk 0:01:11.1]} 21... Bxe3+ {[%clk 0:01:28.6]} 22. Kh1 {[%clk
0:01:08.9]} 22... Qh5 {[%clk 0:01:23.8]} 23. Be4 {[%clk 0:00:44]} 23... dxe4
{[%clk 0:01:15.1]} 24. Qxe4 {[%clk 0:00:41.5]} 24... Qxh2# {[%clk 0:01:11]} 0-1

[Event "*** Titled Tuesday Blitz"]
[Site "Chess.com"]
[Date "2021.02.09"]
[Round "6"]
[White "Manukyan_Artak"]
[Black "FMalexhdez"]
[Result "0-1"]
[WhiteElo "2347"]
[BlackElo "2189"]
[TimeControl "180+1"]
[EndTime "11:06:27 PST"]
[Termination "FMalexhdez won by resignation"]

1. e4 {[%clk 0:03:00.9]} 1... c5 {[%clk 0:02:57.1]} 2. Nf3 {[%clk 0:03:00]} 2...
d6 {[%clk 0:02:55.6]} 3. Bb5+ {[%clk 0:02:59.1]} 3... Bd7 {[%clk 0:02:55.1]} 4.
Bxd7+ {[%clk 0:02:58.5]} 4... Qxd7 {[%clk 0:02:55.7]} 5. c4 {[%clk 0:02:58.8]}
5... Nc6 {[%clk 0:02:55.9]} 6. O-O {[%clk 0:02:59.1]} 6... Nd4 {[%clk 0:02:55]}
7. Nxd4 {[%clk 0:02:58.1]} 7... cxd4 {[%clk 0:02:54.6]} 8. d3 {[%clk 0:02:58.5]}
8... g6 {[%clk 0:02:54.1]} 9. f4 {[%clk 0:02:58.2]} 9... Bg7 {[%clk 0:02:53.7]}
10. f5 {[%clk 0:02:56.3]} 10... e6 {[%clk 0:02:48.9]} 11. fxe6 {[%clk
0:02:54.7]} 11... fxe6 {[%clk 0:02:48.3]} 12. Bg5 {[%clk 0:02:50.8]} 12... h6
{[%clk 0:02:39.1]} 13. Bh4 {[%clk 0:02:49.9]} 13... h5 {[%clk 0:02:19]} 14. Nd2
{[%clk 0:02:47.7]} 14... Ne7 {[%clk 0:02:08.2]} 15. Nf3 {[%clk 0:02:47]} 15...
O-O {[%clk 0:02:02.1]} 16. b4 {[%clk 0:02:35.7]} 16... Nc6 {[%clk 0:02:01.3]}
17. b5 {[%clk 0:02:34.8]} 17... Ne5 {[%clk 0:01:58.3]} 18. Nxe5 {[%clk
0:02:33.3]} 18... Bxe5 {[%clk 0:01:49.9]} 19. a4 {[%clk 0:02:28.5]} 19... Kg7
{[%clk 0:01:44.3]} 20. a5 {[%clk 0:02:26.2]} 20... d5 {[%clk 0:01:40.4]} 21. a6
{[%clk 0:02:22.9]} 21... b6 {[%clk 0:01:38.8]} 22. cxd5 {[%clk 0:02:19.2]} 22...
exd5 {[%clk 0:01:38.6]} 23. Qb3 {[%clk 0:02:18.8]} 23... dxe4 {[%clk 0:01:34.8]}
24. dxe4 {[%clk 0:02:17.7]} 24... d3 {[%clk 0:01:30.7]} 25. Rad1 {[%clk
0:02:15.5]} 25... Rxf1+ {[%clk 0:01:26.4]} 26. Rxf1 {[%clk 0:02:09.6]} 26... d2
{[%clk 0:01:15.9]} 27. Rd1 {[%clk 0:02:00]} 27... Rc8 {[%clk 0:01:09]} 28. Bg5
{[%clk 0:01:46.7]} 28... Qd4+ {[%clk 0:01:02.6]} 29. Qe3 {[%clk 0:01:43]} 29...
Rc1 {[%clk 0:00:52.1]} 30. Bh6+ {[%clk 0:01:15.7]} 30... Kh7 {[%clk 0:00:48]}
0-1

[Event "*** Titled Tuesday Blitz"]
[Site "Chess.com"]
[Date "2021.02.09"]
[Round "6"]
[White "ChessWarrior7197"]
[Black "emperor87"]
[Result "1-0"]
[WhiteElo "2953"]
[BlackElo "2714"]
[TimeControl "180+1"]
[EndTime "11:06:31 PST"]
[Termination "ChessWarrior7197 won by resignation"]

1. e4 {[%clk 0:02:54.5]} 1... e5 {[%clk 0:02:58.8]} 2. Nf3 {[%clk 0:02:54.5]}
2... Nc6 {[%clk 0:02:59]} 3. Bc4 {[%clk 0:02:54.3]} 3... Nf6 {[%clk 0:02:59.2]}
4. Ng5 {[%clk 0:02:54.7]} 4... d5 {[%clk 0:02:59]} 5. exd5 {[%clk 0:02:55.6]}
5... Na5 {[%clk 0:02:59.3]} 6. Bb5+ {[%clk 0:02:56.2]} 6... c6 {[%clk
0:02:59.7]} 7. dxc6 {[%clk 0:02:57.1]} 7... bxc6 {[%clk 0:03:00.5]} 8. Bd3
{[%clk 0:02:57.5]} 8... Nd5 {[%clk 0:03:00.8]} 9. Nf3 {[%clk 0:02:55]} 9... Bd6
{[%clk 0:02:59.2]} 10. O-O {[%clk 0:02:55.5]} 10... O-O {[%clk 0:02:58.6]} 11.
Re1 {[%clk 0:02:55.6]} 11... Qc7 {[%clk 0:02:52.4]} 12. c4 {[%clk 0:02:31.2]}
12... Nf4 {[%clk 0:02:50.1]} 13. Bf1 {[%clk 0:02:29.4]} 13... c5 {[%clk
0:02:47.8]} 14. Nc3 {[%clk 0:02:24.9]} 14... Bb7 {[%clk 0:02:42.5]} 15. Nb5
{[%clk 0:02:22.1]} 15... Qd7 {[%clk 0:02:41.8]} 16. d3 {[%clk 0:02:20.4]} 16...
Rae8 {[%clk 0:02:35.9]} 17. Nxd6 {[%clk 0:02:10]} 17... Qxd6 {[%clk 0:02:35.5]}
18. Nxe5 {[%clk 0:02:09.6]} 18... Nh3+ {[%clk 0:01:33.9]} 19. gxh3 {[%clk
0:02:05.3]} 19... Rxe5 {[%clk 0:01:34]} 20. Bf4 {[%clk 0:02:00.6]} 20... Qc6
{[%clk 0:01:28.6]} 21. f3 {[%clk 0:01:35.2]} 21... Rxe1 {[%clk 0:01:23]} 22.
Qxe1 {[%clk 0:01:36.1]} 22... Qxf3 {[%clk 0:01:22.2]} 23. Qe3 {[%clk 0:01:33.4]}
23... Qh1+ {[%clk 0:01:05.1]} 24. Kf2 {[%clk 0:01:33.3]} 24... g5 {[%clk
0:00:35.2]} 25. Bd6 {[%clk 0:01:31.1]} 25... Rd8 {[%clk 0:00:23.7]} 26. Qxg5+
{[%clk 0:01:30.5]} 1-0

[Event "*** Titled Tuesday Blitz"]
[Site "Chess.com"]
[Date "2021.02.09"]
[Round "6"]
[White "FMKonstantin_Twitch"]
[Black "Deepweb2020"]
[Result "1-0"]
[WhiteElo "2627"]
[BlackElo "2469"]
[TimeControl "180+1"]
[EndTime "11:06:36 PST"]
[Termination "FMKonstantin_Twitch won by resignation"]

1. d4 {[%clk 0:03:00.9]} 1... Nf6 {[%clk 0:02:59.6]} 2. Bf4 {[%clk 0:02:59.6]}
2... e6 {[%clk 0:02:59.8]} 3. e3 {[%clk 0:02:58.6]} 3... c5 {[%clk 0:03:00]} 4.
c3 {[%clk 0:02:57.8]} 4... d5 {[%clk 0:03:00.6]} 5. Nd2 {[%clk 0:02:55.8]} 5...
Bd6 {[%clk 0:03:00.8]} 6. Bg3 {[%clk 0:02:55.9]} 6... Qc7 {[%clk 0:03:00.7]} 7.
Ngf3 {[%clk 0:02:53]} 7... Nbd7 {[%clk 0:03:00.7]} 8. Bd3 {[%clk 0:02:49.7]}
8... O-O {[%clk 0:02:59.9]} 9. O-O {[%clk 0:02:47.6]} 9... Bxg3 {[%clk
0:02:59.4]} 10. hxg3 {[%clk 0:02:45.8]} 10... e5 {[%clk 0:03:00.3]} 11. e4
{[%clk 0:02:45.4]} 11... Re8 {[%clk 0:02:54.8]} 12. dxe5 {[%clk 0:02:40.4]}
12... Nxe5 {[%clk 0:02:54.1]} 13. Nxe5 {[%clk 0:02:40.9]} 13... Qxe5 {[%clk
0:02:55]} 14. Nf3 {[%clk 0:02:38.4]} 14... Qh5 {[%clk 0:02:38.7]} 15. exd5
{[%clk 0:02:36.6]} 15... Qxd5 {[%clk 0:02:35.7]} 16. Bb5 {[%clk 0:02:17.9]}
16... Rd8 {[%clk 0:02:26.1]} 17. Qxd5 {[%clk 0:02:10.6]} 17... Rxd5 {[%clk
0:02:25.6]} 18. Bc4 {[%clk 0:02:10.8]} 18... Rd8 {[%clk 0:02:23.5]} 19. Ng5
{[%clk 0:02:09.2]} 19... Rf8 {[%clk 0:02:15.6]} 20. Rfe1 {[%clk 0:02:03.5]}
20... h6 {[%clk 0:02:11.6]} 21. Nxf7 {[%clk 0:02:01.6]} 21... Rxf7 {[%clk
0:02:12.5]} 22. Re7 {[%clk 0:02:00.2]} 22... Bf5 {[%clk 0:01:51.9]} 23. Rxf7
{[%clk 0:01:55.4]} 23... Kh7 {[%clk 0:01:47.1]} 24. Rxb7 {[%clk 0:01:52.7]}
24... Rd8 {[%clk 0:01:47.7]} 25. Re1 {[%clk 0:01:48.9]} 25... Rd2 {[%clk
0:01:46]} 26. f3 {[%clk 0:01:47.5]} 26... Kg6 {[%clk 0:01:26.1]} 27. Ree7 {[%clk
0:01:28.3]} 27... Bd7 {[%clk 0:01:25.9]} 28. Bf7+ {[%clk 0:01:18.6]} 28... Kf5
{[%clk 0:01:24.5]} 29. Rbxd7 {[%clk 0:01:14.2]} 29... Nxd7 {[%clk 0:01:14.6]}
30. Be6+ {[%clk 0:01:14.3]} 30... Kf6 {[%clk 0:00:57.9]} 31. Rxd7 {[%clk
0:01:14]} 31... Rxb2 {[%clk 0:00:58.8]} 32. Bb3 {[%clk 0:01:12.8]} 32... a5
{[%clk 0:00:58.3]} 33. Rd6+ {[%clk 0:01:11.6]} 33... Ke5 {[%clk 0:00:58.3]} 34.
Rd5+ {[%clk 0:01:11.6]} 34... Kf6 {[%clk 0:00:57.9]} 35. Rxc5 {[%clk 0:01:12.1]}
1-0

[Event "*** Titled Tuesday Blitz"]
[Site "Chess.com"]
[Date "2021.02.09"]
[Round "6"]
[White "Sergey85Rodchenkov"]
[Black "NaciSAN"]
[Result "1-0"]
[WhiteElo "2486"]
[BlackElo "2304"]
[TimeControl "180+1"]
[EndTime "11:06:37 PST"]
[Termination "Sergey85Rodchenkov won by resignation"]

1. e4 {[%clk 0:03:00.9]} 1... e5 {[%clk 0:02:59.7]} 2. Nf3 {[%clk 0:03:00.9]}
2... Nc6 {[%clk 0:03:00.2]} 3. Bc4 {[%clk 0:03:01]} 3... Bc5 {[%clk 0:02:59.4]}
4. d3 {[%clk 0:03:01.1]} 4... Nf6 {[%clk 0:02:59.1]} 5. O-O {[%clk 0:03:00.3]}
5... a6 {[%clk 0:02:58.7]} 6. c3 {[%clk 0:02:59.6]} 6... h6 {[%clk 0:02:54]} 7.
Nbd2 {[%clk 0:02:58.1]} 7... d6 {[%clk 0:02:53.5]} 8. Re1 {[%clk 0:02:55.8]}
8... Ba7 {[%clk 0:02:53.2]} 9. Bb3 {[%clk 0:02:55.1]} 9... O-O {[%clk
0:02:52.6]} 10. Nf1 {[%clk 0:02:54.9]} 10... Ng4 {[%clk 0:02:46.3]} 11. d4
{[%clk 0:02:49.3]} 11... Qe7 {[%clk 0:02:28.1]} 12. h3 {[%clk 0:02:47.4]} 12...
Nf6 {[%clk 0:02:27.8]} 13. Ng3 {[%clk 0:02:47.4]} 13... Be6 {[%clk 0:02:27.2]}
14. d5 {[%clk 0:02:46.8]} 14... Bxh3 {[%clk 0:02:09.8]} 15. gxh3 {[%clk
0:02:43.8]} 15... Nd8 {[%clk 0:02:04.2]} 16. Kg2 {[%clk 0:02:42.5]} 16... Kh7
{[%clk 0:02:02.5]} 17. Be3 {[%clk 0:02:41.9]} 17... g6 {[%clk 0:01:57.4]} 18.
Bc2 {[%clk 0:02:41.2]} 18... Bb8 {[%clk 0:01:49.4]} 19. c4 {[%clk 0:02:40.9]}
19... Ng8 {[%clk 0:01:43.5]} 20. Qd2 {[%clk 0:02:40.8]} 20... f6 {[%clk
0:01:38.5]} 21. h4 {[%clk 0:02:40]} 21... h5 {[%clk 0:01:37.5]} 22. b4 {[%clk
0:02:33.7]} 22... Nf7 {[%clk 0:01:37]} 23. c5 {[%clk 0:02:33.1]} 23... Nfh6
{[%clk 0:01:35.3]} 24. Nh2 {[%clk 0:02:31.4]} 24... f5 {[%clk 0:01:28]} 25. Bg5
{[%clk 0:02:31.2]} 25... Qf7 {[%clk 0:01:23]} 26. f3 {[%clk 0:02:26.1]} 26...
Ba7 {[%clk 0:01:22.5]} 27. Bb3 {[%clk 0:02:07.9]} 27... fxe4 {[%clk 0:01:08.1]}
28. Nxe4 {[%clk 0:02:00.8]} 28... Nf5 {[%clk 0:01:05.4]} 29. Rac1 {[%clk
0:01:46.5]} 29... Rac8 {[%clk 0:00:43.8]} 30. cxd6 {[%clk 0:01:44.2]} 30... cxd6
{[%clk 0:00:44.7]} 31. Rxc8 {[%clk 0:01:43.4]} 31... Rxc8 {[%clk 0:00:45.4]} 32.
Rc1 {[%clk 0:01:42.6]} 32... Nxh4+ {[%clk 0:00:28.7]} 33. Bxh4 {[%clk 0:01:38]}
1-0